[Event "NJSK 2023 Jeugd C"]
[Site "Almelo, Netherlands"]
[Date "2023.05.04"]
[Round "6.7"]
[White "Terlouw, Wouter"]
[Black "Vijver, Jonathan"]
[Result "1/2-1/2"]
[TimeControl "90min/40moves + 30min + 30sec/move"]
[WhiteElo "1923"]
[BlackElo "1781"]

1. c4 {[%clk 01:30:42]} {[%emt 00:00:17]} f5 {[%clk 01:30:34]} {[%emt
00:00:27]} 2. d4 {[%clk 01:30:46]} {[%emt 00:00:25]} Nf6 {[%clk 01:30:58]}
{[%emt 00:00:06]} 3. Nc3 {[%clk 01:31:11]} {[%emt 00:00:05]} g6 {[%clk
01:31:23]} {[%emt 00:00:05]} 4. h4 {[%clk 01:31:32]} {[%emt 00:00:09]} Bg7
{[%clk 01:31:37]} {[%emt 00:00:16]} 5. h5 {[%clk 01:31:56]} {[%emt 00:00:06]}
d6 {[%clk 01:26:41]} {[%emt 00:05:28]} 6. h6 {[%clk 01:23:26]} {[%emt
00:09:00]} Bf8 {[%clk 01:26:33]} {[%emt 00:00:38]} 7. Bg5 {[%clk 01:23:45]}
{[%emt 00:00:10]} Nc6 {[%clk 01:09:20]} {[%emt 00:17:44]} 8. f3 {[%clk
01:05:43]} {[%emt 00:18:32]} e6 {[%clk 00:50:42]} {[%emt 00:19:08]} 9. e4
{[%clk 00:49:56]} {[%emt 00:16:17]} Be7 {[%clk 00:46:37]} {[%emt 00:04:35]} 10.
Nge2 {[%clk 00:46:36]} {[%emt 00:03:49]} O-O {[%clk 00:40:01]} {[%emt
00:07:05]} 11. Be3 {[%clk 00:36:04]} {[%emt 00:11:02]} a6 {[%clk 00:31:47]}
{[%emt 00:08:45]} 12. exf5 {[%clk 00:28:38]} {[%emt 00:07:56]} exf5 {[%clk
00:30:22]} {[%emt 00:01:54]} 13. d5 {[%clk 00:28:32]} {[%emt 00:00:36]} Ne5
{[%clk 00:28:19]} {[%emt 00:02:33]} 14. Nd4 {[%clk 00:28:29]} {[%emt 00:00:32]}
Bd7 {[%clk 00:20:01]} {[%emt 00:08:51]} 15. Qd2 {[%clk 00:25:29]} {[%emt
00:03:29]} c5 {[%clk 00:16:16]} {[%emt 00:04:16]} 16. Nc2 {[%clk 00:22:40]}
{[%emt 00:03:17]} Rb8 {[%clk 00:15:56]} {[%emt 00:00:50]} 17. Bf4 {[%clk
00:22:43]} {[%emt 00:00:28]} Qe8 {[%clk 00:15:28]} {[%emt 00:00:59]} 18. Ne3
{[%clk 00:21:28]} {[%emt 00:01:44]} Nf7 {[%clk 00:14:20]} {[%emt 00:01:38]} 19.
Be2 {[%clk 00:17:47]} {[%emt 00:04:11]} b5 {[%clk 00:11:42]} {[%emt 00:03:08]}
20. Kf1 {[%clk 00:16:32]} {[%emt 00:01:45]} bxc4 {[%clk 00:09:47]} {[%emt
00:02:25]} 21. Nxc4 {[%clk 00:16:30]} {[%emt 00:00:31]} Qc8 {[%clk 00:07:19]}
{[%emt 00:02:58]} 22. Re1 {[%clk 00:15:50]} {[%emt 00:01:10]} Re8 {[%clk
00:06:39]} {[%emt 00:01:10]} 23. Bd3 {[%clk 00:11:30]} {[%emt 00:04:50]} Bf8
{[%clk 00:04:55]} {[%emt 00:02:15]} 24. Kf2 {[%clk 00:11:21]} {[%emt 00:00:39]}
Rxe1 {[%clk 00:04:31]} {[%emt 00:00:53]} 25. Rxe1 {[%clk 00:11:47]} {[%emt
00:00:03]} Nh5 {[%clk 00:04:41]} {[%emt 00:00:21]} 26. Rh1 {[%clk 00:10:50]}
{[%emt 00:01:25]} Nxf4 {[%clk 00:04:07]} {[%emt 00:01:07]} 27. Qxf4 {[%clk
00:11:18]} {[%emt 00:00:02]} Qd8 {[%clk 00:04:27]} {[%emt 00:00:10]} 28. g4
{[%clk 00:09:19]} {[%emt 00:02:29]} fxg4 {[%clk 00:03:57]} {[%emt 00:00:59]} 29.
fxg4 {[%clk 00:08:35]} {[%emt 00:01:15]} Qg5 {[%clk 00:04:10]} {[%emt
00:00:17]} 1/2-1/2

[Event "NJSK 2023 Jeugd C"]
[Site "Almelo, Netherlands"]
[Date "2023.05.04"]
[Round "6.8"]
[White "Kazarjan, Gachatur"]
[Black "Chua, Ethan"]
[Result "1/2-1/2"]
[TimeControl "90min/40moves + 30min + 30sec/move"]
[WhiteElo "1872"]
[BlackElo "1776"]

1. e4 {[%clk 01:30:58]} {[%emt 00:00:02]} c6 {[%clk 01:30:55]} {[%emt
00:00:05]} 2. d4 {[%clk 01:31:17]} {[%emt 00:00:10]} d5 {[%clk 01:31:22]}
{[%emt 00:00:04]} 3. exd5 {[%clk 01:31:44]} {[%emt 00:00:03]} cxd5 {[%clk
01:31:48]} {[%emt 00:00:05]} 4. c4 {[%clk 01:32:09]} {[%emt 00:00:04]} Nf6
{[%clk 01:32:13]} {[%emt 00:00:04]} 5. Nc3 {[%clk 01:32:35]} {[%emt 00:00:05]}
e6 {[%clk 01:31:55]} {[%emt 00:00:48]} 6. c5 {[%clk 01:33:00]} {[%emt
00:00:05]} Nc6 {[%clk 01:32:15]} {[%emt 00:00:09]} 7. Bb5 {[%clk 01:33:15]}
{[%emt 00:00:17]} Bd7 {[%clk 01:32:36]} {[%emt 00:00:09]} 8. Nf3 {[%clk
01:33:40]} {[%emt 00:00:05]} a6 {[%clk 01:23:27]} {[%emt 00:09:39]} 9. Bxc6
{[%clk 01:33:20]} {[%emt 00:00:49]} Bxc6 {[%clk 01:23:16]} {[%emt 00:00:42]} 10.
Ne5 {[%clk 01:29:03]} {[%emt 00:04:46]} Be7 {[%clk 01:10:43]} {[%emt 00:13:03]}
11. b4 {[%clk 01:25:27]} {[%emt 00:04:07]} Nd7 {[%clk 01:09:04]} {[%emt
00:02:09]} 12. f4 {[%clk 01:22:15]} {[%emt 00:03:42]} Nxe5 {[%clk 00:59:39]}
{[%emt 00:09:55]} 13. fxe5 {[%clk 01:22:02]} {[%emt 00:00:43]} O-O {[%clk
00:55:52]} {[%emt 00:04:16]} 14. O-O {[%clk 01:21:40]} {[%emt 00:00:52]} f5
{[%clk 00:49:00]} {[%emt 00:07:21]} 15. Be3 {[%clk 01:20:49]} {[%emt 00:01:23]}
Qe8 {[%clk 00:42:46]} {[%emt 00:06:43]} 16. Rf2 {[%clk 01:07:39]} {[%emt
00:13:39]} a5 {[%clk 00:33:54]} {[%emt 00:09:23]} 17. a3 {[%clk 01:06:24]}
{[%emt 00:01:45]} axb4 {[%clk 00:33:17]} {[%emt 00:01:07]} 18. axb4 {[%clk
01:05:20]} {[%emt 00:01:34]} Rxa1 {[%clk 00:33:34]} {[%emt 00:00:12]} 19. Qxa1
{[%clk 01:05:47]} {[%emt 00:00:04]} g5 {[%clk 00:33:51]} {[%emt 00:00:13]} 20.
Qa2 {[%clk 00:57:37]} {[%emt 00:08:41]} f4 {[%clk 00:32:51]} {[%emt 00:01:29]}
21. Bc1 {[%clk 00:57:32]} {[%emt 00:00:35]} Qh5 {[%clk 00:30:05]} {[%emt
00:03:15]} 22. b5 {[%clk 00:50:56]} {[%emt 00:07:07]} Be8 {[%clk 00:30:11]}
{[%emt 00:00:24]} 23. Qa8 {[%clk 00:46:30]} {[%emt 00:04:57]} f3 {[%clk
00:16:24]} {[%emt 00:14:17]} 24. Qxb7 {[%clk 00:36:20]} {[%emt 00:10:40]} fxg2
{[%clk 00:16:44]} {[%emt 00:00:10]} 25. Qxe7 {[%clk 00:35:26]} {[%emt
00:01:23]} Rxf2 {[%clk 00:17:02]} 26. Kxf2 {[%clk 00:35:47]} {[%emt 00:00:21]}
g1=Q+ {[%emt 00:07:50]} 27. Kxg1 {[%clk 00:36:13]} {[%emt 00:00:04]} Qg4+
{[%clk 00:09:55]} {[%emt 00:00:17]} 28. Kf2 {[%clk 00:27:52]} {[%emt 00:08:51]}
Qh4+ {[%clk 00:07:50]} {[%emt 00:02:36]} 29. Ke2 {[%clk 00:22:54]} {[%emt
00:05:27]} Bh5+ {[%clk 00:07:48]} {[%emt 00:00:32]} 1/2-1/2

[Event "NJSK 2023 Jeugd C"]
[Site "Almelo, Netherlands"]
[Date "2023.05.04"]
[Round "6.9"]
[White "Ten Kate, Gustav"]
[Black "Katpatal, Akshaj"]
[Result "0-1"]
[TimeControl "90min/40moves + 30min + 30sec/move"]
[WhiteElo "1815"]
[BlackElo "1840"]

1. d4 {[%clk 01:30:53]} {[%emt 00:00:05]} e6 {[%clk 01:30:49]} {[%emt
00:00:12]} 2. c4 {[%clk 01:31:15]} {[%emt 00:00:07]} Nf6 {[%clk 01:31:03]}
{[%emt 00:00:17]} 3. Nf3 {[%clk 01:31:38]} {[%emt 00:00:08]} d5 {[%clk
01:31:27]} {[%emt 00:00:06]} 4. g3 {[%clk 01:31:45]} {[%emt 00:00:22]} c6
{[%clk 01:31:10]} {[%emt 00:00:48]} 5. Bg2 {[%clk 01:31:47]} {[%emt 00:00:27]}
Bd6 {[%clk 01:31:19]} {[%emt 00:00:23]} 6. O-O {[%clk 01:31:57]} {[%emt
00:00:19]} Nbd7 {[%clk 01:31:24]} {[%emt 00:00:25]} 7. Qc2 {[%clk 01:32:09]}
{[%emt 00:00:18]} O-O {[%clk 01:30:30]} {[%emt 00:01:24]} 8. Nbd2 {[%clk
01:32:03]} {[%emt 00:00:35]} Re8 {[%clk 01:28:44]} {[%emt 00:02:16]} 9. e4
{[%clk 01:31:37]} {[%emt 00:00:57]} dxe4 {[%clk 01:28:44]} {[%emt 00:00:30]} 10.
Nxe4 {[%clk 01:31:55]} {[%emt 00:00:11]} Nxe4 {[%clk 01:28:54]} {[%emt
00:00:21]} 11. Qxe4 {[%clk 01:32:19]} {[%emt 00:00:07]} Nf6 {[%clk 01:27:26]}
{[%emt 00:01:58]} 12. Qe2 {[%clk 01:30:11]} {[%emt 00:02:37]} Nd7 {[%clk
01:18:43]} {[%emt 00:09:13]} 13. Rd1 {[%clk 01:24:53]} {[%emt 00:05:49]} Qe7
{[%clk 01:15:32]} {[%emt 00:03:41]} 14. Ne5 {[%clk 01:19:43]} {[%emt 00:05:38]}
f6 {[%clk 01:13:11]} {[%emt 00:02:52]} 15. Nxd7 {[%clk 01:18:56]} {[%emt
00:01:17]} Bxd7 {[%clk 01:12:00]} {[%emt 00:01:42]} 16. f4 {[%clk 01:02:09]}
{[%emt 00:17:17]} Rad8 {[%clk 01:03:19]} {[%emt 00:09:11]} 17. Bd2 {[%clk
00:49:00]} {[%emt 00:13:38]} Bc8 {[%clk 00:36:36]} {[%emt 00:27:20]} 18. Bc3
{[%clk 00:45:11]} {[%emt 00:04:19]} Qc7 {[%clk 00:28:30]} {[%emt 00:08:36]} 19.
Re1 {[%clk 00:37:53]} {[%emt 00:07:49]} Bd7 {[%clk 00:24:16]} {[%emt 00:04:45]}
20. Rad1 {[%clk 00:25:13]} {[%emt 00:13:09]} c5 {[%clk 00:20:20]} {[%emt
00:04:27]} 21. dxc5 {[%clk 00:19:04]} {[%emt 00:06:39]} Bxc5+ {[%clk 00:20:31]}
{[%emt 00:00:17]} 22. Kh1 {[%clk 00:19:08]} {[%emt 00:00:26]} Bc6 {[%clk
00:14:37]} {[%emt 00:06:25]} 23. Rxd8 {[%clk 00:17:21]} {[%emt 00:02:16]} Qxd8
{[%clk 00:14:57]} {[%emt 00:00:10]} 24. Bxc6 {[%clk 00:17:20]} {[%emt
00:00:30]} bxc6 {[%clk 00:15:23]} {[%emt 00:00:05]} 25. Rd1 {[%clk 00:15:55]}
{[%emt 00:01:54]} Qe7 {[%clk 00:15:42]} {[%emt 00:00:11]} 26. Qe4 {[%clk
00:14:24]} {[%emt 00:02:01]} Qc7 {[%clk 00:11:21]} {[%emt 00:04:51]} 27. b4
{[%clk 00:11:14]} {[%emt 00:03:40]} Bf8 {[%clk 00:11:30]} {[%emt 00:00:21]} 28.
Qd4 {[%clk 00:10:12]} {[%emt 00:01:31]} c5 {[%clk 00:11:05]} {[%emt 00:00:57]}
29. bxc5 {[%clk 00:10:11]} {[%emt 00:00:30]} Bxc5 {[%clk 00:11:28]} {[%emt
00:00:07]} 30. Qd7 {[%clk 00:09:53]} {[%emt 00:00:47]} Qb8 {[%clk 00:11:41]}
{[%emt 00:00:18]} 31. Qb5 {[%clk 00:09:33]} {[%emt 00:00:50]} Qa8+ {[%clk
00:12:03]} {[%emt 00:00:08]} 32. Rd5 {[%clk 00:08:52]} {[%emt 00:01:10]} exd5
{[%clk 00:12:22]} {[%emt 00:00:12]} 33. Qxc5 {[%clk 00:08:59]} {[%emt
00:00:23]} d4+ {[%clk 00:12:44]} {[%emt 00:00:08]} 34. Kg1 {[%clk 00:09:16]}
{[%emt 00:00:13]} dxc3 {[%clk 00:13:07]} {[%emt 00:00:07]} 35. Qd4 {[%clk
00:09:09]} {[%emt 00:00:37]} c2 {[%clk 00:13:18]} {[%emt 00:00:19]} 36. Qd5+
{[%clk 00:08:53]} {[%emt 00:00:46]} Qxd5 {[%clk 00:13:42]} {[%emt 00:00:06]} 37.
cxd5 {[%clk 00:09:19]} {[%emt 00:00:04]} c1=Q+ {[%clk 00:13:59]} {[%emt
00:00:14]} 38. Kg2 {[%clk 00:09:46]} {[%emt 00:00:02]} Qd2+ {[%clk 00:14:12]}
{[%emt 00:00:17]} 39. Kh3 {[%clk 00:10:10]} {[%emt 00:00:05]} f5 {[%clk
00:14:38]} {[%emt 00:00:05]} 40. d6 {[%clk 00:10:36]} {[%emt 00:00:04]} Re2
{[%clk 00:15:03]} {[%emt 00:00:05]} 41. Kh4 {[%clk 00:10:58]} {[%emt 00:00:08]}
h6 {[%clk 00:15:28]} {[%emt 00:00:05]} 42. Kh5 {[%clk 00:11:24]} {[%emt
00:00:04]} Kh7 {[%clk 00:15:51]} {[%emt 00:00:07]} 43. h4 {[%clk 00:11:47]}
{[%emt 00:00:07]} g6# {[%clk 00:16:16]} {[%emt 00:00:05]} 0-1

[Event "NJSK 2023 Jeugd C"]
[Site "Almelo, Netherlands"]
[Date "2023.05.04"]
[Round "6.10"]
[White "Ambrona Navarro, Himar"]
[Black "Thijssen, Freek"]
[Result "1/2-1/2"]
[TimeControl "90min/40moves + 30min + 30sec/move"]
[WhiteElo "1834"]
[BlackElo "1644"]

1. d4 {[%clk 01:30:57]} {[%emt 00:00:03]} d5 {[%clk 01:30:55]} {[%emt
00:00:06]} 2. c4 {[%clk 01:31:15]} {[%emt 00:00:10]} c6 {[%clk 01:31:06]}
{[%emt 00:00:19]} 3. cxd5 {[%clk 01:31:35]} {[%emt 00:00:09]} cxd5 {[%clk
01:31:26]} {[%emt 00:00:12]} 4. Bf4 {[%clk 01:31:53]} {[%emt 00:00:11]} Nf6
{[%clk 01:31:30]} {[%emt 00:00:26]} 5. e3 {[%clk 01:31:51]} {[%emt 00:00:31]}
e6 {[%clk 01:29:00]} {[%emt 00:03:01]} 6. Nc3 {[%clk 01:29:38]} {[%emt
00:02:42]} Bd6 {[%clk 01:25:30]} {[%emt 00:04:02]} 7. Bg3 {[%clk 01:28:54]}
{[%emt 00:01:10]} O-O {[%clk 01:21:42]} {[%emt 00:04:21]} 8. Bd3 {[%clk
01:26:38]} {[%emt 00:02:46]} Nc6 {[%clk 01:17:16]} {[%emt 00:04:57]} 9. Nf3
{[%clk 01:24:31]} {[%emt 00:02:36]} Qe7 {[%clk 01:10:53]} {[%emt 00:06:54]} 10.
Bxd6 {[%clk 01:21:04]} {[%emt 00:03:38]} Qxd6 {[%clk 01:10:59]} {[%emt
00:00:43]} 11. O-O {[%clk 01:21:21]} {[%emt 00:00:12]} Bd7 {[%clk 01:08:49]}
{[%emt 00:02:42]} 12. a3 {[%clk 01:19:26]} {[%emt 00:02:23]} Rac8 {[%clk
01:03:12]} {[%emt 00:06:08]} 13. Rc1 {[%clk 01:09:32]} {[%emt 00:10:23]} Na5
{[%clk 00:42:18]} {[%emt 00:21:26]} 14. Ne5 {[%clk 01:03:05]} {[%emt 00:06:55]}
Nc4 {[%clk 00:36:05]} {[%emt 00:06:44]} 15. Nxc4 {[%clk 00:57:10]} {[%emt
00:06:25]} dxc4 {[%clk 00:36:27]} {[%emt 00:00:09]} 16. Ne4 {[%clk 00:57:31]}
{[%emt 00:00:07]} Nxe4 {[%clk 00:35:41]} {[%emt 00:01:17]} 17. Bxe4 {[%clk
00:57:47]} {[%emt 00:00:13]} Bc6 {[%clk 00:33:50]} {[%emt 00:02:24]} 18. Bxc6
{[%clk 00:56:44]} {[%emt 00:01:31]} Qxc6 {[%clk 00:30:12]} {[%emt 00:04:08]} 19.
Qe2 {[%clk 00:53:55]} {[%emt 00:03:19]} b5 {[%clk 00:21:29]} {[%emt 00:09:13]}
1/2-1/2

[Event "NJSK 2023 Jeugd C"]
[Site "Almelo, Netherlands"]
[Date "2023.05.04"]
[Round "6.11"]
[White "Etienne, Ghilon"]
[Black "Fallaux, Storm"]
[Result "0-1"]
[TimeControl "90min/40moves + 30min + 30sec/move"]
[WhiteElo "1673"]
[BlackElo "1650"]

1. d4 {[%clk 01:30:58]} {[%emt 00:00:02]} Nf6 {[%clk 01:30:40]} {[%emt
00:00:21]} 2. c4 {[%clk 01:31:19]} {[%emt 00:00:08]} e6 {[%clk 01:31:07]}
{[%emt 00:00:03]} 3. Nf3 {[%clk 01:31:40]} {[%emt 00:00:09]} b6 {[%clk
01:31:32]} {[%emt 00:00:05]} 4. g3 {[%clk 01:31:54]} {[%emt 00:00:15]} Bb7
{[%clk 01:31:47]} {[%emt 00:00:15]} 5. Bg2 {[%clk 01:32:07]} {[%emt 00:00:17]}
Be7 {[%clk 01:31:25]} {[%emt 00:00:53]} 6. O-O {[%clk 01:31:56]} {[%emt
00:00:41]} O-O {[%clk 01:29:52]} {[%emt 00:02:03]} 7. Nc3 {[%clk 01:30:36]}
{[%emt 00:01:50]} d5 {[%clk 01:29:38]} {[%emt 00:00:44]} 8. e3 {[%clk
01:25:17]} {[%emt 00:05:48]} c5 {[%clk 01:27:53]} {[%emt 00:02:16]} 9. b3
{[%clk 01:23:57]} {[%emt 00:01:49]} dxc4 {[%clk 01:28:03]} {[%emt 00:00:20]} 10.
bxc4 {[%clk 01:24:09]} {[%emt 00:00:19]} cxd4 {[%clk 01:26:56]} {[%emt
00:01:37]} 11. exd4 {[%clk 01:23:23]} {[%emt 00:01:16]} Qc7 {[%clk 01:26:43]}
{[%emt 00:00:42]} 12. Qb3 {[%clk 01:21:13]} {[%emt 00:02:39]} Nc6 {[%clk
01:25:47]} {[%emt 00:01:28]} 13. Bf4 {[%clk 01:19:59]} {[%emt 00:01:44]} Qc8
{[%clk 01:25:06]} {[%emt 00:01:10]} 14. Ne5 {[%clk 01:17:11]} {[%emt 00:03:19]}
Nxd4 {[%clk 01:24:24]} {[%emt 00:01:12]} 15. Qb2 {[%clk 01:02:36]} {[%emt
00:15:04]} Bxg2 {[%clk 01:23:22]} {[%emt 00:01:32]} 16. Kxg2 {[%clk 01:03:02]}
{[%emt 00:00:05]} Qb7+ {[%clk 01:23:42]} {[%emt 00:00:10]} 17. f3 {[%clk
01:03:06]} {[%emt 00:00:25]} Nc6 {[%clk 01:23:15]} {[%emt 00:00:57]} 18. Nd3
{[%clk 00:50:19]} {[%emt 00:13:18]} Na5 {[%clk 01:20:29]} {[%emt 00:03:17]} 19.
Ne5 {[%clk 00:49:48]} {[%emt 00:01:00]} Nh5 {[%clk 01:19:45]} {[%emt 00:01:13]}
20. Qe2 {[%clk 00:47:56]} {[%emt 00:02:23]} Nxf4+ {[%clk 01:19:59]} {[%emt
00:00:16]} 21. gxf4 {[%clk 00:48:20]} {[%emt 00:00:05]} Bf6 {[%clk 01:16:37]}
{[%emt 00:03:53]} 22. Rac1 {[%clk 00:45:06]} {[%emt 00:03:44]} Rac8 {[%clk
01:15:47]} {[%emt 00:01:20]} 23. Ne4 {[%clk 00:39:30]} {[%emt 00:06:06]} Bxe5
{[%clk 01:14:31]} {[%emt 00:01:46]} 24. fxe5 {[%clk 00:39:48]} {[%emt
00:00:12]} Rc6 {[%clk 01:12:02]} {[%emt 00:02:58]} 25. Kh1 {[%clk 00:32:31]}
{[%emt 00:07:47]} Qc7 {[%clk 01:11:29]} {[%emt 00:01:04]} 26. Nd6 {[%clk
00:30:47]} {[%emt 00:02:14]} Nb7 {[%clk 01:11:43]} {[%emt 00:00:15]} 27. Nb5
{[%clk 00:30:39]} {[%emt 00:00:38]} Qb8 {[%clk 01:11:44]} {[%emt 00:00:29]} 28.
f4 {[%clk 00:21:11]} {[%emt 00:09:58]} Rd8 {[%clk 01:07:46]} {[%emt 00:04:28]}
29. Rg1 {[%clk 00:19:07]} {[%emt 00:02:34]} a6 {[%clk 01:07:18]} {[%emt
00:00:59]} 30. Qg2 {[%clk 00:19:05]} {[%emt 00:00:33]} g6 {[%clk 01:06:14]}
{[%emt 00:01:34]} 31. Qxc6 {[%clk 00:19:17]} {[%emt 00:00:18]} axb5 {[%clk
01:06:30]} {[%emt 00:00:15]} 32. cxb5 {[%clk 00:15:50]} {[%emt 00:03:57]} Nc5
{[%clk 01:06:23]} {[%emt 00:00:37]} 33. Qf3 {[%clk 00:15:20]} {[%emt 00:00:55]}
Rd2 {[%clk 00:57:54]} {[%emt 00:09:03]} 34. Rg2 {[%clk 00:13:44]} {[%emt
00:02:07]} Qd8 {[%clk 00:57:59]} {[%emt 00:00:26]} 35. Rcg1 {[%clk 00:08:27]}
{[%emt 00:05:46]} Kg7 {[%clk 00:56:22]} {[%emt 00:02:08]} 36. Qe3 {[%clk
00:05:52]} {[%emt 00:03:05]} Rd3 {[%clk 00:56:29]} {[%emt 00:00:23]} 37. Qc1
{[%clk 00:05:49]} {[%emt 00:00:11]} Qd7 {[%clk 00:56:30]} {[%emt 00:00:51]} 38.
Qc4 {[%clk 00:04:55]} {[%emt 00:01:24]} h6 {[%clk 00:56:26]} {[%emt 00:00:34]}
39. a4 {[%clk 00:04:56]} {[%emt 00:00:29]} Rd4 {[%clk 00:56:43]} {[%emt
00:00:13]} 40. Qc2 {[%clk 00:05:08]} {[%emt 00:00:18]} Qd5 {[%clk 00:56:46]}
{[%emt 00:00:28]} 41. f5 {[%clk 00:04:55]} {[%emt 00:00:43]} g5 {[%clk
00:56:08]} {[%emt 00:01:08]} 42. f6+ {[%clk 00:05:05]} {[%emt 00:00:21]} Kh8
{[%clk 00:56:14]} {[%emt 00:00:23]} 43. Qe2 {[%clk 00:04:07]} {[%emt 00:01:27]}
Rh4 {[%clk 00:55:58]} {[%emt 00:00:47]} 44. Qd1 {[%clk 00:03:13]} {[%emt
00:01:24]} Qb7 {[%clk 00:55:05]} {[%emt 00:01:23]} 45. Qd8+ {[%clk 00:03:12]}
{[%emt 00:00:31]} Kh7 {[%clk 00:54:38]} {[%emt 00:00:58]} 46. Qf8 {[%clk
00:01:13]} {[%emt 00:02:28]} Kg6 {[%clk 00:54:49]} {[%emt 00:00:18]} 47. a5
{[%clk 00:00:43]} {[%emt 00:01:01]} Ne4 {[%clk 00:55:01]} {[%emt 00:00:18]} 48.
Re1 {[%clk 00:00:48]} {[%emt 00:00:24]} Nf2+ {[%clk 00:54:58]} {[%emt
00:00:32]} 49. Kg1 {[%clk 00:01:12]} {[%emt 00:00:06]} Nh3+ {[%clk 00:55:02]}
{[%emt 00:00:27]} 50. Kh1 {[%clk 00:01:01]} {[%emt 00:00:41]} Nf4 {[%clk
00:49:44]} {[%emt 00:05:49]} 51. Qg7+ {[%clk 00:00:34]} {[%emt 00:00:57]} Kh5
{[%clk 00:46:50]} {[%emt 00:03:25]} 52. Reg1 {[%clk 00:00:50]} {[%emt
00:00:14]} bxa5 {[%clk 00:47:00]} {[%emt 00:00:20]} 53. Qh7 {[%clk 00:00:32]}
{[%emt 00:00:47]} Nxg2 {[%clk 00:46:10]} {[%emt 00:01:20]} 54. Rxg2 {[%clk
00:00:31]} {[%emt 00:00:32]} Rg4 {[%clk 00:46:24]} {[%emt 00:00:16]} 55. Qc2
{[%clk 00:00:53]} {[%emt 00:00:08]} Rxg2 {[%clk 00:45:39]} {[%emt 00:01:15]} 56.
Qxg2 {[%clk 00:01:18]} {[%emt 00:00:05]} Qxb5 {[%clk 00:45:53]} {[%emt
00:00:16]} 57. Qf3+ {[%clk 00:01:02]} {[%emt 00:00:46]} g4 {[%clk 00:45:58]}
{[%emt 00:00:24]} 58. Qf2 {[%clk 00:00:31]} {[%emt 00:01:02]} Qd5+ {[%clk
00:45:54]} {[%emt 00:00:34]} 59. Kg1 {[%clk 00:00:50]} {[%emt 00:00:12]} Qd1+
{[%clk 00:46:17]} {[%emt 00:00:06]} 0-1

[Event "NJSK 2023 Jeugd C"]
[Site "Almelo, Netherlands"]
[Date "2023.05.04"]
[Round "6.12"]
[White "Rooijakkers, Liam"]
[Black "Roorda, Cas"]
[Result "0-1"]
[TimeControl "90min/40moves + 30min + 30sec/move"]
[WhiteElo "1322"]
[BlackElo "1769"]

1. e4 {[%clk 01:30:53]} {[%emt 00:00:06]} e6 {[%clk 01:30:55]} {[%emt
00:00:05]} 2. d4 {[%clk 01:31:09]} {[%emt 00:00:15]} d5 {[%clk 01:31:22]}
{[%emt 00:00:03]} 3. Nc3 {[%clk 01:31:20]} {[%emt 00:00:18]} Bb4 {[%clk
01:31:47]} {[%emt 00:00:05]} 4. e5 {[%clk 01:31:36]} {[%emt 00:00:15]} c5
{[%clk 01:32:13]} {[%emt 00:00:03]} 5. a3 {[%clk 01:31:47]} {[%emt 00:00:19]}
Bxc3+ {[%clk 01:32:39]} {[%emt 00:00:05]} 6. bxc3 {[%clk 01:32:11]} {[%emt
00:00:05]} Ne7 {[%clk 01:33:05]} {[%emt 00:00:04]} 7. Qg4 {[%clk 01:32:25]}
{[%emt 00:00:16]} Qc7 {[%clk 01:33:27]} {[%emt 00:00:08]} 8. Qxg7 {[%clk
01:24:45]} {[%emt 00:08:10]} Rg8 {[%clk 01:33:36]} {[%emt 00:00:22]} 9. Qxh7
{[%clk 01:25:06]} {[%emt 00:00:07]} cxd4 {[%clk 01:33:57]} {[%emt 00:00:10]} 10.
Ne2 {[%clk 01:25:18]} {[%emt 00:00:18]} Nbc6 {[%clk 01:34:23]} {[%emt
00:00:04]} 11. f4 {[%clk 01:24:29]} {[%emt 00:01:20]} dxc3 {[%clk 01:34:22]}
{[%emt 00:00:31]} 12. Be3 {[%clk 01:21:48]} {[%emt 00:03:11]} Bd7 {[%clk
01:28:01]} {[%emt 00:06:51]} 13. h3 {[%clk 01:11:52]} {[%emt 00:10:26]} O-O-O
{[%clk 00:49:31]} {[%emt 00:39:01]} 14. g4 {[%clk 01:02:24]} {[%emt 00:09:58]}
d4 {[%clk 00:39:06]} {[%emt 00:10:55]} 15. Bf2 {[%clk 00:58:20]} {[%emt
00:04:34]} Qb6 {[%clk 00:32:16]} {[%emt 00:07:21]} 16. Nc1 {[%clk 00:54:48]}
{[%emt 00:04:01]} Qb2 {[%clk 00:29:32]} {[%emt 00:03:14]} 17. Nb3 {[%clk
00:54:54]} {[%emt 00:00:25]} Na5 {[%clk 00:29:22]} {[%emt 00:00:40]} 18. Qd3
{[%clk 00:54:07]} {[%emt 00:01:16]} Nxb3 {[%clk 00:29:34]} {[%emt 00:00:18]} 19.
Rd1 {[%clk 00:52:30]} {[%emt 00:02:08]} Bc6 {[%clk 00:28:05]} {[%emt 00:01:57]}
20. Rg1 {[%clk 00:50:03]} {[%emt 00:02:59]} Nd2 {[%clk 00:26:50]} {[%emt
00:01:45]} 21. Be2 {[%clk 00:49:15]} {[%emt 00:01:17]} Be4 {[%clk 00:26:39]}
{[%emt 00:00:41]} 0-1